bitfinex/quotes_BTCUSD_20241222
["timestamp","ask_amount","ask_price","bid_price","bid_amount"]
[1734909312768,0.42371701,95442.0,95426.0,0.209585]
[1734909312975,0.21416601,95442.0,95426.0,0.209585]
[1734909313334,0.00461501,95442.0,95441.0,0.209553]
[1734909313536,0.00461501,95442.0,95430.0,0.1901043]
[1734909313537,0.00461501,95442.0,95434.0,0.02092704]
[1734909313671,0.209545,95445.0,95430.0,0.1901043]
[1734909314076,0.00468285,95443.0,95431.0,0.209575]
[1734909314281,0.009,95442.0,95439.0,0.209556]
[1734909314506,0.009,95442.0,95440.0,0.00104767]
[1734909314738,0.00033351,95444.0,95440.0,0.00104767]
[1734909315066,0.00033351,95444.0,95441.0,0.71814]
[1734909315259,0.00033351,95444.0,95443.0,0.209549]
[1734909315852,0.00033351,95444.0,95443.0,0.3108574]
[1734909316055,0.00633351,95444.0,95443.0,0.4108574]
[1734909316217,0.00633351,95444.0,95443.0,2.2740574]
[1734909316565,0.00033351,95444.0,95443.0,1.8312284]
[1734909317115,0.00033351,95444.0,95443.0,1.85247172]
[1734909317334,0.0001712,95464.0,95450.0,0.1]
[1734909317561,0.0001712,95464.0,95450.0,0.68786771]
[1734909317739,0.0001712,95464.0,95450.0,0.6868204]
[1734909318581,0.0001712,95464.0,95450.0,1.2228204]
[1734909318781,0.0493,95491.0,95479.0,0.20947]
[1734909319014,0.00071231,95480.0,95479.0,0.20947]
[1734909319424,0.00071231,95480.0,95477.0,0.209474]
[1734909319568,0.00071231,95480.0,95474.0,0.20948]
[1734909320206,0.00071231,95480.0,95471.0,0.209487]
[1734909320407,0.00071231,95480.0,95475.0,0.209477]
[1734909320633,0.00371231,95480.0,95470.0,0.12651344]
[1734909320805,0.00071231,95480.0,95468.0,0.209493]
[1734909321011,0.0817,95478.0,95460.0,0.20951]
[1734909321213,0.00483821,95477.0,95462.0,0.209507]
[1734909321435,0.291173,95478.0,95462.0,0.209507]
[1734909321843,0.00482602,95477.0,95462.0,0.209507]
[1734909322109,0.00482602,95477.0,95467.0,0.12651344]
[1734909322312,0.00482602,95477.0,95474.0,0.41896]
[1734909322524,0.00482602,95477.0,95476.0,0.209476]
[1734909322735,0.00071231,95480.0,95467.0,0.18973729]
[1734909322920,0.209482,95474.0,95460.0,0.0225619]
[1734909323100,0.00371231,95480.0,95451.0,0.209531]
[1734909323101,0.0826,95473.0,95451.0,0.209531]
[1734909323263,0.209499,95466.0,95444.0,0.209545]
[1734909323464,0.0451,95465.0,95453.0,0.209527]
[1734909323690,0.04990654,95465.0,95453.0,0.209527]
[1734909324496,0.00480654,95465.0,95462.0,0.209506]
[1734909324958,0.0916,95473.0,95458.0,0.209514]
[1734909325198,0.12561763,95472.0,95440.0,0.18973729]
[1734909325370,0.12561763,95472.0,95451.0,0.02231164]
[1734909325371,0.209516,95459.0,95451.0,0.02231164]
[1734909325547,0.209516,95459.0,95443.0,0.1500856]
[1734909325750,0.209507,95463.0,95443.0,0.1500856]
[1734909325956,0.023,95466.0,95444.0,0.00052794]
[1734909326156,0.0916,95473.0,95451.0,0.209531]
[1734909326157,0.004,95465.0,95451.0,0.209531]
[1734909326342,0.004,95465.0,95450.0,0.209533]
[1734909326343,0.209503,95464.0,95450.0,0.209533]
[1734909326762,0.00485754,95463.0,95450.0,0.209533]
[1734909327186,0.002,95459.0,95450.0,0.209533]
[1734909327550,0.002,95459.0,95454.0,0.209524]
[1734909327977,0.002,95459.0,95456.0,0.20952]
[1734909328185,0.002,95459.0,95458.0,0.209516]
[1734909328384,0.002,95459.0,95458.0,0.8594394]
[1734909329094,0.21018131,95480.0,95458.0,0.1013084]
[1734909329293,0.21018131,95480.0,95463.0,0.209505]
[1734909329499,0.00487057,95478.0,95467.0,0.209495]
[1734909329723,0.00487057,95478.0,95463.0,0.209505]
[1734909330000,0.00487057,95478.0,95471.0,0.209486]
[1734909330125,0.00071231,95480.0,95460.0,0.18973729]
[1734909330335,0.00071231,95480.0,95473.0,0.209482]
[1734909330743,0.005,95478.0,95477.0,0.209472]
[1734909331088,0.00071231,95480.0,95477.0,0.209474]
[1734909331289,0.00071231,95480.0,95479.0,0.20947]
[1734909331724,0.00071231,95480.0,95479.0,0.3107784]
[1734909333046,0.00671231,95480.0,95479.0,0.3107784]
[1734909333218,0.00071231,95480.0,95479.0,0.3107784]
[1734909333630,0.00071231,95480.0,95479.0,0.3147784]
[1734909333831,0.00071231,95480.0,95479.0,0.3107784]
[1734909334355,0.00971231,95480.0,95479.0,0.3117784]
[1734909334727,0.00971231,95480.0,95479.0,0.4403134]
[1734909334932,0.00971231,95480.0,95479.0,0.3117784]
[1734909335154,0.00071231,95480.0,95477.0,0.0222111]
[1734909335363,0.0763,95479.0,95477.0,0.0222111]
[1734909335524,0.0763,95479.0,95467.0,0.209495]
[1734909335525,0.08118093,95479.0,95468.0,0.209494]
[1734909335745,0.08118093,95479.0,95472.0,0.209483]
[1734909336063,0.00488093,95479.0,95477.0,0.209474]
[1734909336279,0.00488093,95479.0,95478.0,0.00052729]
[1734909336482,0.00671231,95480.0,95477.0,0.418948]
[1734909336787,0.00071231,95480.0,95477.0,0.418948]
[1734909337124,0.001,95479.0,95477.0,0.418948]
[1734909337328,0.00071231,95480.0,95477.0,0.209474]
[1734909337723,0.00071231,95480.0,95477.0,0.002]
[1734909337964,0.00071231,95480.0,95467.0,0.209494]
[1734909338179,0.00496991,95479.0,95469.0,0.209492]
[1734909338387,0.00071231,95480.0,95477.0,0.003]
[1734909338826,0.00496991,95479.0,95477.0,0.003]
[1734909338977,0.00071231,95480.0,95477.0,0.003]
[1734909339177,0.00496991,95479.0,95477.0,0.003]
[1734909339381,0.00071231,95480.0,95477.0,0.003]
[1734909339555,0.00496991,95479.0,95477.0,0.003]
[1734909339757,0.209492,95469.0,95465.0,0.02197868]
[1734909339987,0.256586,95472.0,95456.0,0.209518]
[1734909340395,0.209495,95468.0,95451.0,0.209531]
[1734909340613,0.209495,95468.0,95452.0,0.3108374]
[1734909340976,0.209498,95466.0,95452.0,0.209529]
[1734909341419,0.00494964,95465.0,95443.0,0.02220726]
[1734909341651,0.007,95468.0,95450.0,0.18973729]
[1734909341981,0.023,95470.0,95451.0,0.00052781]
[1734909342210,0.023,95470.0,95452.0,0.209529]
[1734909342445,0.00494492,95469.0,95452.0,0.209529]
[1734909342685,0.209492,95469.0,95452.0,0.209529]
[1734909342952,0.00494668,95468.0,95452.0,0.209529]
[1734909343177,0.00494668,95468.0,95456.0,0.20952]
[1734909343555,0.00494668,95468.0,95458.0,0.18973729]
[1734909343803,0.00494668,95468.0,95459.0,0.0005277]
[1734909344000,0.001,95468.0,95460.0,0.209511]
[1734909344303,0.00498059,95467.0,95460.0,0.209511]
[1734909344670,0.003,95468.0,95460.0,0.209511]
[1734909344875,0.00497977,95466.0,95460.0,0.209511]
[1734909345075,0.00497887,95467.0,95460.0,0.209511]
[1734909345276,0.00497721,95465.0,95460.0,0.209511]
[1734909345491,0.00497804,95466.0,95460.0,0.209511]
[1734909345672,0.0812,95471.0,95460.0,0.209511]
[1734909345880,0.0812,95471.0,95451.0,0.209531]
[1734909346087,0.00498135,95470.0,95459.0,0.209513]
[1734909346487,0.00498135,95470.0,95451.0,0.209531]
[1734909346810,0.00498135,95470.0,95444.0,0.1013084]
[1734909346811,0.232492,95469.0,95445.0,0.209543]
[1734909347024,0.00624236,95468.0,95456.0,8.56e-05]
[1734909347224,0.209506,95463.0,95456.0,8.56e-05]
[1734909347452,0.00492625,95462.0,95456.0,8.56e-05]
[1734909348430,0.442018,95461.0,95456.0,8.56e-05]
[1734909348751,0.023,95459.0,95456.0,8.56e-05]
[1734909349084,0.00491418,95458.0,95456.0,8.56e-05]
[1734909349286,0.209476,95477.0,95461.0,0.209507]
[1734909349486,0.256585,95472.0,95457.0,0.209518]
[1734909350121,0.209489,95470.0,95456.0,0.0010856]
[1734909350551,0.256585,95472.0,95458.0,0.209516]
[1734909350552,0.0471,95472.0,95458.0,0.209516]
[1734909350687,0.0471,95472.0,95461.0,0.209508]
[1734909350891,0.0471,95472.0,95460.0,0.12653694]
[1734909351098,0.08281231,95480.0,95473.0,0.209483]
[1734909351355,0.08281231,95480.0,95471.0,0.209487]
[1734909351656,0.08281231,95480.0,95467.0,0.209495]
[1734909352442,0.002,95471.0,95467.0,0.209495]
[1734909352615,0.08281231,95480.0,95467.0,0.209495]
[1734909353025,0.08881231,95480.0,95467.0,0.209495]
[1734909354315,0.08281231,95480.0,95467.0,0.209495]
[1734909355334,0.08581231,95480.0,95467.0,0.209495]
[1734909356177,0.08581231,95480.0,95467.0,0.22978422]
[1734909356403,0.08581231,95480.0,95471.0,0.209486]
[1734909356574,0.08581231,95480.0,95470.0,0.12653694]
[1734909357332,0.08581231,95480.0,95470.0,0.33602394]
[1734909357533,0.08281231,95480.0,95470.0,0.33602394]
[1734909357733,0.08581231,95480.0,95470.0,0.33602394]
[1734909358089,0.08281231,95480.0,95470.0,0.33602394]
[1734909358278,0.08281231,95480.0,95470.0,0.12653694]
[1734909358476,0.08481231,95480.0,95470.0,0.12653694]
[1734909358675,0.08281231,95480.0,95467.0,0.22978422]
[1734909359078,0.20947,95479.0,95467.0,0.02028922]
[1734909359278,0.20947,95479.0,95464.0,0.209501]
[1734909359874,0.209478,95475.0,95459.0,0.02117923]
[1734909360083,0.08481231,95480.0,95462.0,0.209506]
[1734909360280,0.00130923,95479.0,95462.0,0.209506]
[1734909360486,0.209479,95475.0,95462.0,0.209506]
[1734909361034,0.209495,95468.0,95458.0,0.02025526]
[1734909361177,0.209502,95465.0,95452.0,0.209529]
[1734909361729,0.1013084,95479.0,95449.0,0.209534]
[1734909361730,0.0816,95479.0,95468.0,0.209492]
[1734909362025,0.0816,95479.0,95469.0,0.33602794]
[1734909362255,0.001,95479.0,95470.0,0.00052747]
[1734909362427,0.001,95479.0,95476.0,0.209476]
[1734909362629,0.00071231,95480.0,95476.0,0.209476]
[1734909362765,0.00071231,95480.0,95470.0,0.209489]
[1734909363191,0.00071231,95480.0,95468.0,0.209493]
[1734909363802,0.00071231,95480.0,95468.0,0.2279396]
[1734909364029,0.005,95479.0,95468.0,0.2279396]
[1734909364227,0.005,95479.0,95468.0,0.4374326]
[1734909364522,0.00071231,95480.0,95468.0,0.4374326]
[1734909365269,0.00271231,95480.0,95468.0,0.4374326]
[1734909366294,0.00271231,95480.0,95472.0,0.209485]
[1734909366671,0.20947,95479.0,95468.0,0.0184466]
[1734909366874,0.00271231,95480.0,95467.0,0.209496]
[1734909367406,0.20947,95479.0,95467.0,0.209496]
[1734909367734,0.17164631,95482.0,95467.0,0.209496]
[1734909367887,0.20947,95479.0,95466.0,0.15]
[1734909368067,0.21047,95479.0,95466.0,0.15]
[1734909368263,0.001,95479.0,95467.0,0.209496]
[1734909368468,0.17180852,95482.0,95467.0,0.209496]
[1734909368655,0.001,95479.0,95467.0,0.209496]
[1734909369056,0.17180852,95482.0,95467.0,0.209496]
[1734909369257,0.17180852,95482.0,95466.0,0.15]
[1734909369736,0.17180852,95482.0,95467.0,0.209496]
[1734909369970,0.17180852,95482.0,95466.0,0.15]
[1734909369971,0.00016221,95482.0,95472.0,0.12653694]
[1734909370119,0.00016221,95482.0,95473.0,0.10183546]
[1734909370322,0.002,95479.0,95477.0,0.209474]
[1734909370526,0.002,95479.0,95478.0,0.00052709]
[1734909370703,0.00016221,95482.0,95479.0,0.40064]
[1734909370902,0.00516221,95482.0,95473.0,0.1013084]
[1734909371137,0.00516221,95482.0,95480.0,0.209466]
[1734909371333,0.00016221,95482.0,95480.0,0.209466]
[1734909371767,0.00016221,95482.0,95481.0,0.1013084]
[1734909371909,0.00016221,95482.0,95481.0,0.4588434]
[1734909372110,0.0001714,95490.0,95489.0,0.359448]
[1734909372400,0.0001714,95508.0,95490.0,0.1]
[1734909372563,0.0001714,95508.0,95506.0,0.15]
[1734909372887,0.0001714,95508.0,95507.0,0.209408]
[1734909373193,0.0001714,95508.0,95507.0,0.6000834]
[1734909373412,0.0001714,95511.0,95509.0,0.209404]
[1734909373620,0.0001714,95511.0,95510.0,0.35]
[1734909373621,2e-07,95511.0,95510.0,0.35]
[1734909373760,2e-07,95516.0,95515.0,0.1]
[1734909373957,0.00016235,95516.0,95515.0,1.5431444]
[1734909374163,0.00016235,95516.0,95515.0,1.0643084]
[1734909374478,0.0001714,95540.0,95523.0,0.1]
[1734909374684,0.0001714,95540.0,95537.0,0.209342]
[1734909374880,0.0001712,95561.0,95538.0,0.7383284]
[1734909375062,0.0001712,95561.0,95546.0,0.359323]
[1734909375247,0.00033352,95547.0,95546.0,0.6794284]
[1734909375678,0.00033352,95547.0,95546.0,0.83140522]
[1734909375887,0.00033352,95547.0,95546.0,0.93140522]
[1734909376090,0.00033352,95547.0,95546.0,0.69707157]
[1734909376486,0.00033352,95547.0,95546.0,0.16764317]
[1734909376710,0.00033352,95547.0,95540.0,0.15]
[1734909377328,0.00033352,95547.0,95541.0,0.209334]
[1734909377532,0.00033352,95547.0,95541.0,0.204374]
[1734909377928,0.00033352,95547.0,95546.0,0.001]
[1734909378278,0.00033352,95547.0,95541.0,0.204374]
[1734909378615,0.00033352,95547.0,95540.0,0.15]
[1734909378825,0.00507286,95546.0,95541.0,0.15]
[1734909379026,0.00033352,95547.0,95542.0,0.209332]
[1734909379292,0.00033352,95547.0,95546.0,0.001]
[1734909379501,0.00033352,95547.0,95542.0,0.209332]
[1734909380246,0.00033352,95547.0,95539.0,0.01806066]
[1734909380447,0.00033352,95547.0,95540.0,0.15]
[1734909380448,0.00504908,95546.0,95540.0,0.15]
[1734909380722,0.418671,95541.0,95537.0,0.01844924]
[1734909380901,0.255334,95541.0,95540.0,0.001]
[1734909381302,0.255334,95541.0,95524.0,0.536]
[1734909381303,0.20935,95534.0,95524.0,0.536]
[1734909381507,0.20935,95534.0,95525.0,0.1013084]
[1734909381701,0.209336,95540.0,95525.0,0.1013084]
[1734909381940,0.255335,95541.0,95524.0,0.55382661]
[1734909381941,0.046,95541.0,95524.0,0.01782661]
[1734909382142,0.046,95541.0,95510.0,0.09286637]
[1734909382143,0.00130837,95540.0,95510.0,0.09286637]
[1734909382344,0.209351,95534.0,95521.0,0.209377]
[1734909382571,0.209351,95534.0,95511.0,0.1013084]
[1734909382775,0.212351,95534.0,95516.0,0.209387]
[1734909382988,0.209351,95533.0,95516.0,0.209387]
[1734909383270,0.209353,95532.0,95516.0,0.209387]
[1734909383567,0.209356,95531.0,95515.0,0.209391]
[1734909383774,0.20937,95525.0,95514.0,0.15]
[1734909383970,0.003,95534.0,95516.0,0.359389]
[1734909384171,0.209336,95540.0,95520.0,0.18940165]
[1734909384312,0.209336,95540.0,95521.0,0.3106834]
[1734909384515,0.00130834,95539.0,95516.0,0.15]
[1734909384716,0.209359,95530.0,95516.0,0.15]
[1734909385030,0.209359,95530.0,95517.0,0.209386]
[1734909385466,0.006,95540.0,95511.0,0.01828722]
[1734909385655,0.1013084,95529.0,95514.0,0.001]
[1734909385844,0.209391,95515.0,95499.0,0.209424]
[1734909386045,0.209385,95518.0,95504.0,0.209415]
[1734909386241,0.023,95538.0,95504.0,0.1013084]
[1734909386469,0.209367,95526.0,95509.0,0.209402]
[1734909386667,0.209378,95522.0,95509.0,0.209402]
[1734909387805,0.209379,95521.0,95509.0,0.209402]
[1734909387947,0.209379,95521.0,95506.0,0.20941]
[1734909388201,0.209379,95521.0,95506.0,0.20957215]
[1734909388330,0.209378,95521.0,95507.0,0.209408]
[1734909389246,0.210378,95521.0,95507.0,0.209408]
[1734909389674,0.00483064,95520.0,95507.0,0.209408]
[1734909390477,0.00483064,95520.0,95511.0,0.15]
[1734909390673,0.209337,95540.0,95518.0,0.209384]
[1734909390856,0.20934,95538.0,95523.0,0.209371]
[1734909391062,0.418681,95538.0,95523.0,0.209371]
[1734909391670,0.20935,95534.0,95520.0,0.20938]
[1734909391844,0.209377,95522.0,95506.0,0.00016215]
[1734909392047,0.0001714,95547.0,95523.0,0.001]
[1734909392048,0.1073084,95538.0,95523.0,0.001]
[1734909392302,0.209371,95524.0,95523.0,0.001]
[1734909392487,0.209386,95518.0,95508.0,0.15]
[1734909392694,0.209378,95521.0,95506.0,0.01827376]
[1734909392868,0.20939,95516.0,95506.0,0.00016215]
[1734909393071,0.00460488,95515.0,95506.0,0.00016215]
[1734909393740,0.209393,95514.0,95506.0,0.00016215]
[1734909394129,0.209386,95517.0,95506.0,0.00016215]
[1734909394430,0.00460571,95513.0,95506.0,0.00016215]
[1734909394654,0.001,95515.0,95506.0,0.00016215]
[1734909394861,0.209393,95514.0,95507.0,8.55e-05]
[1734909395234,0.209403,95510.0,95507.0,8.55e-05]
[1734909395375,0.0045995,95509.0,95507.0,8.55e-05]
[1734909395571,0.209403,95510.0,95507.0,8.55e-05]
[1734909395572,0.209406,95508.0,95507.0,8.55e-05]
[1734909396419,0.0493,95509.0,95507.0,8.55e-05]
[1734909396642,0.0826,95511.0,95507.0,8.55e-05]
[1734909397073,0.001,95515.0,95507.0,8.55e-05]
[1734909397432,0.209403,95510.0,95507.0,8.55e-05]
[1734909397643,0.18391718,95509.0,95507.0,8.55e-05]
[1734909397840,0.232406,95508.0,95507.0,8.55e-05]
[1734909398041,0.3397144,95508.0,95507.0,0.0010855]
[1734909398440,0.3337144,95508.0,95507.0,8.55e-05]
[1734909399302,0.3417144,95508.0,95507.0,0.0010855]
[1734909399887,0.3904144,95508.0,95507.0,0.0010855]
[1734909400552,0.023,95507.0,95506.0,0.00016215]
[1734909400680,0.12561748,95507.0,95506.0,0.00016215]
[1734909401381,0.1013084,95507.0,95506.0,0.00016215]
[1734909401709,0.1026174,95507.0,95506.0,0.00016215]
[1734909402316,0.1026174,95507.0,95506.0,0.00116215]
[1734909402581,0.1106174,95507.0,95506.0,0.00116215]
[1734909403587,0.1106174,95507.0,95506.0,0.00098215]
[1734909405481,0.008,95507.0,95506.0,0.00098215]
[1734909407629,0.00130885,95508.0,95489.0,0.209447]
[1734909407856,0.209382,95519.0,95502.0,0.209419]
[1734909408055,0.005,95507.0,95506.0,0.0010855]
[1734909408421,0.00016206,95514.0,95512.0,0.209397]
[1734909408663,0.00016206,95514.0,95513.0,0.15]
[1734909410111,0.00016206,95514.0,95509.0,0.209404]
[1734909410315,0.00016206,95514.0,95508.0,0.15]
[1734909411105,0.00516206,95514.0,95508.0,0.15]
[1734909411305,0.00016206,95514.0,95508.0,0.15]
[1734909411662,0.00116206,95514.0,95509.0,0.209404]
[1734909412025,0.00116206,95514.0,95506.0,0.01657381]
[1734909412224,0.00116206,95514.0,95506.0,8.55e-05]
[1734909412428,0.209407,95508.0,95506.0,8.55e-05]
[1734909412638,0.17071728,95507.0,95506.0,8.55e-05]
[1734909414224,0.25301728,95507.0,95506.0,8.55e-05]
[1734909414424,0.2517084,95507.0,95506.0,8.55e-05]
[1734909415125,0.2597084,95507.0,95506.0,0.0010855]
[1734909415327,0.209487,95472.0,95470.0,0.01656413]
[1734909415498,0.209487,95472.0,95459.0,0.209513]
[1734909415730,0.209479,95475.0,95462.0,0.209507]
[1734909416584,0.209479,95475.0,95463.0,0.15]
[1734909418198,0.209488,95471.0,95462.0,0.00054091]
[1734909418345,0.00130928,95470.0,95462.0,0.00054091]
[1734909418571,0.0472,95478.0,95462.0,0.00054091]
[1734909418572,0.209502,95465.0,95462.0,0.00054091]
[1734909418771,0.00130949,95464.0,95462.0,0.00054091]
[1734909418978,0.209505,95463.0,95462.0,0.00054091]
[1734909419181,0.3338134,95463.0,95462.0,0.00054091]
[1734909419381,0.4119134,95463.0,95462.0,0.00054091]
[1734909420244,0.4119134,95463.0,95462.0,0.00062651]
[1734909421002,0.287605,95463.0,95462.0,0.00262651]
[1734909421450,0.287605,95463.0,95462.0,0.00062651]
[1734909421861,0.296605,95463.0,95462.0,0.00162651]
[1734909422067,0.287605,95463.0,95462.0,0.00062651]
[1734909422282,0.209502,95465.0,95462.0,0.00062651]
[1734909422475,0.008,95463.0,95462.0,0.00162651]
[1734909423286,0.418964,95474.0,95462.0,0.01700372]
[1734909423442,0.418964,95474.0,95462.0,0.00062651]
[1734909423928,0.0472,95478.0,95462.0,0.00062651]
[1734909423929,0.418972,95472.0,95462.0,0.00062651]
[1734909424132,0.209489,95470.0,95462.0,0.00062651]
[1734909424480,0.418979,95470.0,95462.0,0.00062651]
[1734909424664,0.009,95463.0,95462.0,0.00162651]
[1734909424859,0.00130937,95469.0,95462.0,0.00062651]
[1734909425262,0.007,95472.0,95462.0,0.00162651]
[1734909425467,0.21079637,95471.0,95462.0,0.00062651]
[1734909425686,0.42028437,95471.0,95462.0,0.00062651]
[1734909425887,0.004,95463.0,95459.0,0.0156205]
[1734909426185,0.0472,95478.0,95459.0,0.00016221]
[1734909426186,0.00130937,95477.0,95459.0,0.00016221]
[1734909426354,0.209472,95478.0,95461.0,0.15]
[1734909426579,0.007,95472.0,95466.0,0.209496]
[1734909427658,0.007,95472.0,95471.0,0.15]
[1734909427866,0.209462,95483.0,95471.0,0.15]
[1734909428225,0.0768,95487.0,95471.0,0.15]
[1734909428433,0.209456,95485.0,95471.0,0.15]
[1734909428675,0.0768,95487.0,95471.0,0.359486]
[1734909428872,0.209437,95494.0,95471.0,0.15]
[1734909429049,0.00130911,95493.0,95473.0,0.15]
[1734909429250,0.209451,95488.0,95473.0,0.15]
[1734909429493,0.008,95483.0,95473.0,0.15]
[1734909429692,0.209448,95489.0,95473.0,0.15]
[1734909430031,0.209441,95493.0,95478.0,0.20947]
[1734909430245,0.00130911,95492.0,95473.0,0.01559065]
[1734909430447,0.1013084,95491.0,95454.0,0.0774]
[1734909430647,0.1013084,95491.0,95453.0,0.15]
[1734909430648,0.209498,95466.0,95453.0,0.15]
[1734909430758,0.023,95490.0,95458.0,0.01543262]
[1734909430964,0.209494,95468.0,95458.0,0.01543262]
[1734909431800,0.209485,95473.0,95458.0,0.01543262]
[1734909431997,0.209487,95471.0,95459.0,0.00116221]
[1734909432249,0.209487,95471.0,95459.0,0.00016221]
[1734909432654,0.001,95468.0,95459.0,0.00016221]
[1734909432946,0.2095,95465.0,95462.0,8.56e-05]
[1734909433261,0.232505,95463.0,95462.0,8.56e-05]
[1734909433419,0.4166134,95463.0,95462.0,8.56e-05]
[1734909433634,0.4624134,95463.0,95462.0,8.56e-05]
[1734909435051,0.4714134,95463.0,95462.0,0.0010856]
[1734909435284,0.4624134,95463.0,95462.0,8.56e-05]
[1734909435625,0.4714134,95463.0,95462.0,0.0010856]
[1734909436035,0.023,95460.0,95421.0,0.15]
[1734909436250,0.209573,95433.0,95428.0,0.00016231]
[1734909436448,0.209565,95436.0,95428.0,0.00016231]
[1734909436846,0.1013084,95459.0,95428.0,0.00016231]
[1734909437049,0.0243097,95458.0,95428.0,0.00016231]
[1734909437249,0.209577,95431.0,95428.0,0.00016231]
[1734909438119,0.419154,95431.0,95428.0,0.00016231]
[1734909438264,0.209577,95431.0,95428.0,0.00016231]
[1734909438469,0.209579,95429.0,95428.0,0.00016231]
[1734909438842,0.3338874,95429.0,95428.0,0.00016231]
[1734909439047,0.3338874,95429.0,95428.0,0.00316231]
[1734909439048,0.4098874,95429.0,95428.0,0.00316231]
[1734909439797,0.5098874,95429.0,95428.0,0.00016231]
[1734909441426,0.7598874,95429.0,95428.0,0.00016231]
[1734909442538,0.6688874,95429.0,95428.0,0.00016231]
[1734909442913,0.3958874,95429.0,95428.0,0.00016231]
[1734909443869,0.3868874,95429.0,95428.0,0.00016231]
[1734909444062,0.3108874,95429.0,95428.0,0.00016231]
[1734909445384,0.3428874,95429.0,95428.0,0.00016231]
[1734909445551,0.3338874,95429.0,95428.0,0.00016231]
[1734909445941,0.1323084,95429.0,95387.0,0.536]
[1734909446295,0.00131002,95428.0,95403.0,0.15016195]
[1734909447029,0.209604,95418.0,95405.0,0.15]
[1734909447249,0.1313084,95429.0,95403.0,0.00016195]
[1734909447250,0.209617,95412.0,95403.0,0.00016195]
[1734909447455,0.209621,95410.0,95403.0,0.00016195]
[1734909448830,0.209633,95405.0,95403.0,0.00016195]
[1734909449030,0.00131029,95404.0,95403.0,0.00016195]
[1734909449943,0.00131029,95404.0,95403.0,0.00116195]
[1734909450351,0.209633,95405.0,95403.0,0.00016195]
[1734909450680,0.0013102,95404.0,95403.0,0.00016195]
[1734909451473,0.14811875,95404.0,95403.0,0.00016195]
[1734909451682,0.17111889,95404.0,95403.0,0.00016195]
[1734909451896,0.27511889,95404.0,95403.0,0.00016195]
[1734909452099,0.2698084,95404.0,95403.0,0.00016195]
[1734909452305,0.3480084,95404.0,95403.0,0.00016195]
[1734909452509,0.3550084,95404.0,95403.0,0.00016195]
[1734909452718,0.3480084,95404.0,95403.0,0.00016195]
[1734909452954,0.3560084,95404.0,95403.0,0.00016195]
[1734909453168,0.2560084,95404.0,95403.0,0.00016195]
[1734909453363,0.2480084,95404.0,95403.0,0.00016195]
[1734909453643,0.2570084,95404.0,95403.0,0.00016195]
[1734909455062,0.2480084,95404.0,95403.0,0.00016195]
[1734909455290,0.2570084,95404.0,95403.0,0.00016195]
[1734909455544,0.2480084,95404.0,95403.0,0.00016195]
[1734909455748,0.3480084,95404.0,95403.0,0.00016195]
[1734909456048,0.3570084,95404.0,95403.0,0.00016195]
[1734909456253,0.3480084,95404.0,95403.0,0.00016195]
[1734909456486,0.3570084,95404.0,95403.0,0.00016195]
[1734909456694,0.2570084,95404.0,95403.0,0.00016195]
[1734909457009,0.2250084,95404.0,95403.0,0.00016195]
[1734909457212,0.2025084,95404.0,95403.0,0.00024765]
[1734909457395,0.2025084,95404.0,95403.0,6.5e-07]
[1734909457396,0.40399024,95404.0,95403.0,6.5e-07]
[1734909457669,0.5995798,95404.0,95403.0,6.5e-07]
[1734909457904,0.2,95402.0,95401.0,3.5e-07]
[1734909458167,0.4526191,95402.0,95401.0,3.5e-07]
[1734909458409,0.4743084,95402.0,95401.0,3.5e-07]
[1734909459479,0.4833084,95402.0,95401.0,3.5e-07]
[1734909461020,0.561952,95396.0,95395.0,5e-08]
[1734909461344,0.8086604,95396.0,95395.0,5e-08]
[1734909462550,0.232705,95372.0,95335.0,0.0457]
[1734909462943,0.232705,95372.0,95371.0,1e-08]
[1734909462944,0.8087134,95372.0,95371.0,1e-08]
[1734909463214,0.373,95369.0,95368.0,6.1e-07]
[1734909463457,0.223,95367.0,95366.0,1.1e-07]
[1734909463715,0.3243084,95367.0,95366.0,1.1e-07]
[1734909463955,0.4930672,95367.0,95366.0,1.1e-07]
[1734909464227,0.48847245,95367.0,95366.0,1.1e-07]
[1734909465270,0.56727245,95367.0,95366.0,1.1e-07]
[1734909465525,0.61546435,95367.0,95366.0,1.1e-07]
[1734909465780,0.61546435,95367.0,95311.0,0.0752]
[1734909465781,0.20979,95333.0,95311.0,0.0752]
[1734909466040,0.3110984,95333.0,95307.0,8.56e-05]
[1734909466306,0.3110984,95333.0,95310.0,0.01507232]
[1734909466563,0.3110984,95333.0,95307.0,8.56e-05]
[1734909467072,0.3110984,95333.0,95307.0,0.01560488]
[1734909467339,0.31163784,95333.0,95307.0,0.01560488]
[1734909467743,0.31163784,95333.0,95307.0,0.22545088]
[1734909467947,0.31163784,95333.0,95308.0,0.15]
[1734909467948,0.00053944,95333.0,95308.0,0.15]
[1734909468121,0.00185071,95333.0,95313.0,0.15]
[1734909468890,0.00185071,95333.0,95317.0,0.01927479]
[1734909469263,0.00185071,95333.0,95318.0,0.15]
[1734909469577,0.00785071,95333.0,95318.0,0.15]
[1734909470076,0.00053944,95333.0,95322.0,0.209813]
[1734909470350,0.00053944,95333.0,95323.0,0.15]
[1734909470541,0.0068507,95333.0,95323.0,0.15]
[1734909470709,0.00553944,95333.0,95323.0,0.15]
[1734909471759,0.0018506,95333.0,95317.0,0.01927479]
[1734909471936,0.10184784,95333.0,95317.0,0.01927479]
[1734909472141,0.10184784,95333.0,95303.0,0.15]
[1734909472142,0.10615924,95333.0,95303.0,0.15]
[1734909472584,0.10315924,95333.0,95303.0,0.15]
[1734909472961,0.10615924,95333.0,95308.0,0.01886175]
[1734909473246,0.10315924,95333.0,95312.0,0.15]
[1734909473468,0.10915924,95333.0,95316.0,0.209826]
[1734909473666,0.10915918,95333.0,95312.0,0.15]
[1734909475637,0.10915918,95333.0,95317.0,0.01938015]
[1734909475838,0.00653944,95333.0,95317.0,0.16938015]
[1734909476041,0.00653944,95333.0,95321.0,0.15]
[1734909476981,0.00653944,95333.0,95321.0,0.359816]
[1734909477328,0.00653944,95333.0,95326.0,0.15]
[1734909477905,0.00653944,95333.0,95330.0,0.15]
[1734909478110,0.00653944,95333.0,95329.0,0.0457856]
[1734909478490,0.00053944,95333.0,95329.0,0.0457856]
[1734909478670,0.00053944,95333.0,95329.0,8.56e-05]
[1734909478871,0.00653944,95333.0,95329.0,8.56e-05]